[Event "Early-Titled-Tuesday-Blitz-September-05-2023"]
[Site "Chess.com"]
[Date "2023.09.05"]
[Round "4"]
[White "Zkid"]
[Black "Indianlad"]
[Result "1-0"]
[WhiteElo "2871"]
[BlackElo "3053"]
[TimeControl "180+1"]
[EndTime "8:39:58 PDT"]
[Termination "Zkid won by resignation"]

1. e4 {[%clk 0:03:00.9]} 1... e6 {[%clk 0:02:52.9]} 2. d4 {[%clk 0:03:01]} 2...
d5 {[%clk 0:02:53.1]} 3. Nd2 {[%clk 0:03:01.1]} 3... Nf6 {[%clk 0:02:50.9]} 4.
e5 {[%clk 0:03:00.8]} 4... Nfd7 {[%clk 0:02:51.6]} 5. Bd3 {[%clk 0:02:57.9]}
5... c5 {[%clk 0:02:51.6]} 6. c3 {[%clk 0:02:58.6]} 6... b6 {[%clk 0:02:51.1]}
7. Qe2 {[%clk 0:02:42.4]} 7... a5 {[%clk 0:02:50]} 8. Bb5 {[%clk 0:02:38.9]}
8... Ba6 {[%clk 0:02:49.5]} 9. a4 {[%clk 0:02:38.9]} 9... Qc8 {[%clk 0:02:44.5]}
10. f4 {[%clk 0:02:31.8]} 10... Nc6 {[%clk 0:02:42.7]} 11. Ngf3 {[%clk
0:02:27.4]} 11... cxd4 {[%clk 0:02:39.1]} 12. Nxd4 {[%clk 0:02:25.1]} 12... Nxd4
{[%clk 0:02:38.7]} 13. cxd4 {[%clk 0:02:26]} 13... Bxb5 {[%clk 0:02:37.4]} 14.
axb5 {[%clk 0:02:17.5]} 14... Bb4 {[%clk 0:02:37]} 15. O-O {[%clk 0:02:16]}
15... O-O {[%clk 0:02:32.1]} 16. Nf3 {[%clk 0:01:51.5]} 16... Qc4 {[%clk
0:01:34.6]} 17. Qxc4 {[%clk 0:01:51]} 17... dxc4 {[%clk 0:01:34.9]} 18. Bd2
{[%clk 0:01:51.4]} 18... Be7 {[%clk 0:01:21.9]} 19. Rfc1 {[%clk 0:01:49.6]}
19... Rfc8 {[%clk 0:01:21.9]} 20. Ra4 {[%clk 0:01:49.8]} 20... Kf8 {[%clk
0:01:17.7]} 21. Raxc4 {[%clk 0:01:40.4]} 21... Rxc4 {[%clk 0:01:18.4]} 22. Rxc4
{[%clk 0:01:41]} 22... Ke8 {[%clk 0:01:19.3]} 23. b3 {[%clk 0:01:39]} 23... Nf8
{[%clk 0:01:05.6]} 24. g4 {[%clk 0:01:28.5]} 24... Bb4 {[%clk 0:00:53.1]} 25.
Bxb4 {[%clk 0:01:19.1]} 25... axb4 {[%clk 0:00:53.4]} 26. Nd2 {[%clk 0:01:15]}
26... Ng6 {[%clk 0:00:52.6]} 27. f5 {[%clk 0:01:13.4]} 27... Nf4 {[%clk
0:00:48.9]} 28. Ne4 {[%clk 0:01:09.5]} 28... Ra2 {[%clk 0:00:48.9]} 29. Nd6+
{[%clk 0:01:03.1]} 29... Kd7 {[%clk 0:00:48.8]} 30. Nxf7 {[%clk 0:00:57.9]}
30... h5 {[%clk 0:00:49.1]} 31. f6 {[%clk 0:00:47.7]} 31... gxf6 {[%clk
0:00:47.5]} 32. exf6 {[%clk 0:00:47.6]} 32... Nh3+ {[%clk 0:00:46.4]} 33. Kf1
{[%clk 0:00:41.4]} 33... Rf2+ {[%clk 0:00:45.8]} 34. Ke1 {[%clk 0:00:41.8]}
34... Rxf6 {[%clk 0:00:46.2]} 35. Ne5+ {[%clk 0:00:41.9]} 35... Kd6 {[%clk
0:00:46.3]} 36. gxh5 {[%clk 0:00:40.3]} 36... Kd5 {[%clk 0:00:45.9]} 37. Nd7
{[%clk 0:00:38.1]} 37... Rf3 {[%clk 0:00:41.9]} 38. Nxb6+ {[%clk 0:00:37.1]}
38... Kd6 {[%clk 0:00:42.1]} 39. Rxb4 {[%clk 0:00:34.4]} 39... Nf4 {[%clk
0:00:41.5]} 40. Nc4+ {[%clk 0:00:30]} 40... Kd5 {[%clk 0:00:38.5]} 41. Ne5
{[%clk 0:00:29.7]} 41... Re3+ {[%clk 0:00:31.2]} 42. Kf2 {[%clk 0:00:20.8]}
42... Rc3 {[%clk 0:00:18.1]} 43. b6 {[%clk 0:00:17.5]} 43... Rc8 {[%clk
0:00:08.2]} 44. Kf3 {[%clk 0:00:14.1]} 44... Rf8 {[%clk 0:00:05.6]} 45. Ke3
{[%clk 0:00:09.6]} 45... Kd6 {[%clk 0:00:06.1]} 46. b7 {[%clk 0:00:09.3]} 46...
Nd5+ {[%clk 0:00:06.3]} 47. Ke4 {[%clk 0:00:08.5]} 47... Nxb4 {[%clk 0:00:07]}
48. Ng6 {[%clk 0:00:08.6]} 48... Rb8 {[%clk 0:00:07]} 49. h6 {[%clk 0:00:09.1]}
49... Rxb7 {[%clk 0:00:07.7]} 50. Kf4 {[%clk 0:00:08]} 50... Rh7 {[%clk
0:00:07.6]} 51. Kg5 {[%clk 0:00:07.9]} 51... Nd5 {[%clk 0:00:08.3]} 52. Nf8
{[%clk 0:00:08]} 52... Rh8 {[%clk 0:00:08.9]} 53. Ng6 {[%clk 0:00:08.5]} 53...
Rh7 {[%clk 0:00:09.1]} 54. Nf8 {[%clk 0:00:08.9]} 54... Rf7 {[%clk 0:00:09.6]}
55. Ng6 {[%clk 0:00:06.2]} 55... Nf6 {[%clk 0:00:09.6]} 56. Ne5 {[%clk
0:00:06.4]} 56... Ne4+ {[%clk 0:00:08.9]} 57. Kg6 {[%clk 0:00:06.5]} 57... Rf2
{[%clk 0:00:08.3]} 58. Ng4 {[%clk 0:00:04.7]} 58... Rf4 {[%clk 0:00:06.9]} 59.
h3 {[%clk 0:00:04.7]} 59... Rf8 {[%clk 0:00:05]} 60. Kg7 {[%clk 0:00:02]} 60...
Rb8 {[%clk 0:00:05.8]} 61. h7 {[%clk 0:00:02]} 61... Rb7+ {[%clk 0:00:06.3]} 62.
Kh6 {[%clk 0:00:02.5]} 62... Rb8 {[%clk 0:00:07]} 63. Ne5 {[%clk 0:00:03]} 63...
Nf6 {[%clk 0:00:04.2]} 64. Nf7+ {[%clk 0:00:02.4]} 64... Kd5 {[%clk 0:00:04.3]}
65. h8=Q {[%clk 0:00:03.3]} 65... Rxh8+ {[%clk 0:00:04.8]} 66. Nxh8 {[%clk
0:00:04.2]} 66... Kxd4 {[%clk 0:00:05.7]} 67. Kg6 {[%clk 0:00:04.4]} 67... Nd5
{[%clk 0:00:05.9]} 68. h4 {[%clk 0:00:05]} 68... e5 {[%clk 0:00:06.7]} 69. Nf7
{[%clk 0:00:05.1]} 69... e4 {[%clk 0:00:07.1]} 70. Ng5 {[%clk 0:00:02.6]} 70...
e3 {[%clk 0:00:07.8]} 71. Kf5 {[%clk 0:00:02.9]} 71... e2 {[%clk 0:00:07.6]} 72.
Nf3+ {[%clk 0:00:02.4]} 72... Ke3 {[%clk 0:00:08.2]} 73. Kg4 {[%clk 0:00:02.9]}
73... Nf6+ {[%clk 0:00:07.7]} 74. Kg3 {[%clk 0:00:03.5]} 74... Nh5+ {[%clk
0:00:07.5]} 75. Kg2 {[%clk 0:00:03.3]} 75... Nf4+ {[%clk 0:00:07.9]} 76. Kg3
{[%clk 0:00:03.9]} 76... Nh5+ {[%clk 0:00:07.2]} 77. Kg2 {[%clk 0:00:04.4]}
77... Nf4+ {[%clk 0:00:07]} 78. Kg3 {[%clk 0:00:05]} 78... Nd3 {[%clk
0:00:07.9]} 79. h5 {[%clk 0:00:04.5]} 79... Ne5 {[%clk 0:00:08.5]} 80. Ne1
{[%clk 0:00:04.9]} 80... Kd2 {[%clk 0:00:09]} 81. Ng2 {[%clk 0:00:05.2]} 81...
Nf7 {[%clk 0:00:07.6]} 82. b4 {[%clk 0:00:05.4]} 82... Kd3 {[%clk 0:00:06.1]}
83. b5 {[%clk 0:00:04.8]} 83... Ke4 {[%clk 0:00:05.5]} 84. b6 {[%clk 0:00:04.8]}
84... Nd6 {[%clk 0:00:05.7]} 85. h6 {[%clk 0:00:04.3]} 85... Kd5 {[%clk
0:00:06.5]} 86. h7 {[%clk 0:00:04.2]} 86... e1=Q+ {[%clk 0:00:05.4]} 87. Nxe1
{[%clk 0:00:04]} 87... Nf7 {[%clk 0:00:06.3]} 88. b7 {[%clk 0:00:04.3]} 1-0

[Event "Early-Titled-Tuesday-Blitz-September-05-2023"]
[Site "Chess.com"]
[Date "2023.09.05"]
[Round "4"]
[White "Kirill_Klukin"]
[Black "gau248"]
[Result "1/2-1/2"]
[WhiteElo "2797"]
[BlackElo "2566"]
[TimeControl "180+1"]
[EndTime "8:40:01 PDT"]
[Termination "Game drawn by agreement"]

1. c4 {[%clk 0:02:59.1]} 1... e6 {[%clk 0:02:56.4]} 2. Nc3 {[%clk 0:02:58.5]}
2... d5 {[%clk 0:02:56]} 3. d4 {[%clk 0:02:58.2]} 3... Nf6 {[%clk 0:02:52.6]} 4.
Bg5 {[%clk 0:02:57.7]} 4... Be7 {[%clk 0:02:49.7]} 5. Nf3 {[%clk 0:02:57.6]}
5... O-O {[%clk 0:02:43.3]} 6. e3 {[%clk 0:02:57.5]} 6... b6 {[%clk 0:02:42.7]}
7. cxd5 {[%clk 0:02:56.7]} 7... Nxd5 {[%clk 0:02:40.6]} 8. Bxe7 {[%clk
0:02:56.9]} 8... Qxe7 {[%clk 0:02:37.2]} 9. Be2 {[%clk 0:02:49.5]} 9... Bb7
{[%clk 0:02:36.3]} 10. O-O {[%clk 0:02:49.4]} 10... Nd7 {[%clk 0:02:35.5]} 11.
Rc1 {[%clk 0:02:49.4]} 11... c5 {[%clk 0:02:34.7]} 12. Bb5 {[%clk 0:02:38.5]}
12... Rfd8 {[%clk 0:02:32.7]} 13. Qe2 {[%clk 0:02:34.1]} 13... a6 {[%clk
0:02:25.2]} 14. Bxd7 {[%clk 0:02:31.5]} 14... Rxd7 {[%clk 0:02:26.1]} 15. dxc5
{[%clk 0:02:24.7]} 15... Qxc5 {[%clk 0:02:24.1]} 16. Nxd5 {[%clk 0:02:18.8]}
16... Qxd5 {[%clk 0:02:17.5]} 17. Rfd1 {[%clk 0:01:50.8]} 17... Qb5 {[%clk
0:02:16.9]} 18. Qxb5 {[%clk 0:01:50.8]} 18... Rxd1+ {[%clk 0:02:16.5]} 19. Rxd1
{[%clk 0:01:51.7]} 19... axb5 {[%clk 0:02:16.2]} 20. a3 {[%clk 0:01:52.1]} 20...
Bxf3 {[%clk 0:01:51]} 21. gxf3 {[%clk 0:01:51.9]} 21... Kf8 {[%clk 0:01:51.4]}
22. Rd6 {[%clk 0:01:48.9]} 22... Rb8 {[%clk 0:01:50.4]} 23. Rd7 {[%clk
0:01:49.2]} 23... Rc8 {[%clk 0:01:50.1]} 24. Rb7 {[%clk 0:01:45.6]} 24... Rc6
{[%clk 0:01:39.2]} 25. f4 {[%clk 0:01:43.5]} 25... g6 {[%clk 0:01:35.4]} 26. Kg2
{[%clk 0:01:42.7]} 26... h5 {[%clk 0:01:35.1]} 27. Kf3 {[%clk 0:01:41.6]} 27...
Kg7 {[%clk 0:01:35.6]} 28. Kg3 {[%clk 0:01:16.1]} 28... Kf6 {[%clk 0:01:35]} 29.
Rb8 {[%clk 0:01:06.6]} 29... Rc2 {[%clk 0:01:25.2]} 30. b4 {[%clk 0:01:01.1]}
30... Rc6 {[%clk 0:01:21.9]} 31. Kf3 {[%clk 0:00:58.8]} 31... Ke7 {[%clk
0:01:09.8]} 32. Rb7+ {[%clk 0:00:58.4]} 32... Kf6 {[%clk 0:01:09.9]} 33. h3
{[%clk 0:00:57.3]} 33... Kg7 {[%clk 0:00:59.9]} 34. Ke4 {[%clk 0:00:56.9]} 34...
Kf6 {[%clk 0:00:58]} 35. Kd3 {[%clk 0:00:53.1]} 35... Rd6+ {[%clk 0:00:58.2]}
36. Kc3 {[%clk 0:00:48.1]} 36... Rc6+ {[%clk 0:00:58.4]} 37. Kd3 {[%clk
0:00:31.6]} 37... Rd6+ {[%clk 0:00:58.2]} 38. Ke4 {[%clk 0:00:32.4]} 38... Rc6
{[%clk 0:00:58.5]} 39. h4 {[%clk 0:00:30.8]} 39... Rd6 {[%clk 0:00:46.5]} 40.
Rc7 {[%clk 0:00:30.7]} 40... Rd2 {[%clk 0:00:45.8]} 41. Kf3 {[%clk 0:00:27.9]}
41... Rd3 {[%clk 0:00:43.3]} 42. Rc6 {[%clk 0:00:27]} 42... Rxa3 {[%clk
0:00:40.3]} 43. Rxb6 {[%clk 0:00:27.3]} 43... Ra1 {[%clk 0:00:38.4]} 44. Rxb5
{[%clk 0:00:27.4]} 44... Rh1 {[%clk 0:00:38.6]} 45. Kg3 {[%clk 0:00:27.8]} 45...
Rg1+ {[%clk 0:00:39]} 46. Kh2 {[%clk 0:00:28.1]} 46... Rf1 {[%clk 0:00:37.7]}
47. Kg2 {[%clk 0:00:28.3]} 47... Rb1 {[%clk 0:00:37.5]} 48. Rb7 {[%clk 0:00:29]}
48... e5 {[%clk 0:00:35.7]} 49. fxe5+ {[%clk 0:00:28.8]} 49... Kxe5 {[%clk
0:00:35.7]} 50. Kf3 {[%clk 0:00:25.4]} 50... Kf6 {[%clk 0:00:32.3]} 51. Kf4
{[%clk 0:00:23.5]} 51... Rh1 {[%clk 0:00:32.2]} 52. Rb6+ {[%clk 0:00:23.6]}
52... Kg7 {[%clk 0:00:32.1]} 53. Kg3 {[%clk 0:00:23.7]} 53... Rg1+ {[%clk
0:00:31.9]} 54. Kh2 {[%clk 0:00:24.1]} 54... Rg4 {[%clk 0:00:31.6]} 55. Kh3
{[%clk 0:00:24.4]} 55... Rg1 {[%clk 0:00:32.2]} 56. Rc6 {[%clk 0:00:21.7]} 56...
Rh1+ {[%clk 0:00:31.4]} 57. Kg3 {[%clk 0:00:18.6]} 57... Rg1+ {[%clk 0:00:31.4]}
58. Kh2 {[%clk 0:00:03.8]} 58... Rg4 {[%clk 0:00:30.8]} 59. b5 {[%clk
0:00:04.3]} 59... Rxh4+ {[%clk 0:00:26.9]} 60. Kg3 {[%clk 0:00:04.9]} 60... Rb4
{[%clk 0:00:27.4]} 61. b6 {[%clk 0:00:05.6]} 61... g5 {[%clk 0:00:25.4]} 62. f3
{[%clk 0:00:05.6]} 62... Rb3 {[%clk 0:00:21.6]} 63. Kf2 {[%clk 0:00:04.5]} 63...
Rb2+ {[%clk 0:00:21.3]} 64. Kg3 {[%clk 0:00:04.9]} 64... h4+ {[%clk 0:00:19.6]}
65. Kh3 {[%clk 0:00:04.4]} 65... Rb3 {[%clk 0:00:18.8]} 66. Kg4 {[%clk
0:00:04.6]} 66... f6 {[%clk 0:00:17.1]} 67. e4 {[%clk 0:00:03.5]} 67... Kg6
{[%clk 0:00:16.7]} 68. e5 {[%clk 0:00:03.2]} 68... Rb4+ {[%clk 0:00:16.1]} 69.
Kh3 {[%clk 0:00:03.4]} 69... Kf5 {[%clk 0:00:11.7]} 70. exf6 {[%clk 0:00:02.9]}
70... Kg6 {[%clk 0:00:11.7]} 71. Kg2 {[%clk 0:00:03.5]} 71... Rb2+ {[%clk
0:00:11.6]} 72. Kh3 {[%clk 0:00:04.2]} 72... Rb3 {[%clk 0:00:12.1]} 73. Rd6
{[%clk 0:00:04.7]} 73... Rxf3+ {[%clk 0:00:11.8]} 74. Kg2 {[%clk 0:00:05.4]}
74... Rb3 {[%clk 0:00:12.4]} 75. Kf2 {[%clk 0:00:04.6]} 75... g4 {[%clk
0:00:12.6]} 76. Kg2 {[%clk 0:00:04.6]} 76... Rb2+ {[%clk 0:00:12.9]} 77. Kg1
{[%clk 0:00:04.8]} 77... g3 {[%clk 0:00:12.6]} 78. f7+ {[%clk 0:00:04]} 78...
Kxf7 {[%clk 0:00:11.4]} 79. Rh6 {[%clk 0:00:04.8]} 79... Rb4 {[%clk 0:00:11]}
80. Kg2 {[%clk 0:00:04.9]} 80... Kg7 {[%clk 0:00:11.2]} 81. Rh5 {[%clk
0:00:04.7]} 81... Rb2+ {[%clk 0:00:10]} 82. Kg1 {[%clk 0:00:04.4]} 82... Rb4
{[%clk 0:00:09.8]} 83. b7 {[%clk 0:00:04.6]} 83... Kg6 {[%clk 0:00:08.6]} 84.
Rxh4 {[%clk 0:00:04.5]} 84... Rxb7 {[%clk 0:00:08.3]} 85. Rg4+ {[%clk
0:00:04.9]} 85... Kf5 {[%clk 0:00:06.7]} 86. Rxg3 {[%clk 0:00:05.3]} 86... Kf4
{[%clk 0:00:07.3]} 87. Ra3 {[%clk 0:00:04.9]} 87... Rb1+ {[%clk 0:00:07.4]} 88.
Kf2 {[%clk 0:00:05.3]} 88... Rb2+ {[%clk 0:00:08]} 89. Ke1 {[%clk 0:00:05.5]}
1/2-1/2

[Event "Early-Titled-Tuesday-Blitz-September-05-2023"]
[Site "Chess.com"]
[Date "2023.09.05"]
[Round "4"]
[White "viktorgen2021"]
[Black "twofoxniel"]
[Result "1-0"]
[WhiteElo "2472"]
[BlackElo "2655"]
[TimeControl "180+1"]
[EndTime "8:40:05 PDT"]
[Termination "viktorgen2021 won by resignation"]

1. Nf3 {[%clk 0:03:00.9]} 1... d5 {[%clk 0:02:59.8]} 2. c4 {[%clk 0:02:59]} 2...
c6 {[%clk 0:03:00.2]} 3. g3 {[%clk 0:02:58.7]} 3... Nf6 {[%clk 0:03:00.8]} 4.
Bg2 {[%clk 0:02:59.3]} 4... Bf5 {[%clk 0:02:58.5]} 5. O-O {[%clk 0:02:58.8]}
5... e6 {[%clk 0:02:58.9]} 6. b3 {[%clk 0:02:59.3]} 6... h6 {[%clk 0:02:57.9]}
7. Bb2 {[%clk 0:02:59.8]} 7... Be7 {[%clk 0:02:58.4]} 8. d4 {[%clk 0:03:00.4]}
8... O-O {[%clk 0:02:58.6]} 9. Nc3 {[%clk 0:03:00.5]} 9... Nbd7 {[%clk
0:02:59.1]} 10. Rc1 {[%clk 0:02:59.9]} 10... Ne4 {[%clk 0:02:58.9]} 11. Nxe4
{[%clk 0:02:55.2]} 11... Bxe4 {[%clk 0:02:59.8]} 12. Ne1 {[%clk 0:02:54.7]}
12... Bxg2 {[%clk 0:02:59.2]} 13. Nxg2 {[%clk 0:02:55.6]} 13... Bd6 {[%clk
0:02:53.5]} 14. Qd3 {[%clk 0:02:52.2]} 14... f5 {[%clk 0:02:52.1]} 15. cxd5
{[%clk 0:02:19.8]} 15... exd5 {[%clk 0:02:51.4]} 16. e3 {[%clk 0:02:14.4]} 16...
Qf6 {[%clk 0:02:23.6]} 17. b4 {[%clk 0:02:11.4]} 17... a6 {[%clk 0:02:22.7]} 18.
a4 {[%clk 0:02:04.7]} 18... Bxb4 {[%clk 0:02:19.3]} 19. Qb3 {[%clk 0:02:03.5]}
19... a5 {[%clk 0:02:18.1]} 20. Bc3 {[%clk 0:02:00.1]} 20... Bxc3 {[%clk
0:02:09.2]} 21. Rxc3 {[%clk 0:01:58.5]} 21... Rab8 {[%clk 0:01:52.8]} 22. Nf4
{[%clk 0:01:56.9]} 22... Qd6 {[%clk 0:01:48.1]} 23. Rb1 {[%clk 0:01:51.1]} 23...
Nf6 {[%clk 0:01:35.2]} 24. Qb6 {[%clk 0:01:48.9]} 24... Ne4 {[%clk 0:01:30.5]}
25. Rc2 {[%clk 0:01:47.4]} 25... Qd8 {[%clk 0:01:22]} 26. Qa7 {[%clk 0:01:32.4]}
26... Qc8 {[%clk 0:00:55.5]} 27. Nxd5 {[%clk 0:01:23.6]} 27... Kh7 {[%clk
0:00:51.6]} 28. Qxa5 {[%clk 0:01:09.1]} 28... Ng5 {[%clk 0:00:49.7]} 29. Nf4
{[%clk 0:01:01.9]} 29... Qe8 {[%clk 0:00:48.8]} 30. Rc5 {[%clk 0:00:28.3]} 30...
Qe4 {[%clk 0:00:47.3]} 31. Rb2 {[%clk 0:00:28.7]} 31... Nf3+ {[%clk 0:00:46.5]}
32. Kf1 {[%clk 0:00:28.8]} 32... Nxh2+ {[%clk 0:00:44.7]} 33. Ke2 {[%clk
0:00:27.6]} 33... Qf3+ {[%clk 0:00:35.3]} 34. Kd3 {[%clk 0:00:27.3]} 34... Qe4+
{[%clk 0:00:35.3]} 35. Ke2 {[%clk 0:00:27]} 35... Nf3 {[%clk 0:00:33.8]} 36. Qb6
{[%clk 0:00:19]} 36... Nxd4+ {[%clk 0:00:33.6]} 37. Kd2 {[%clk 0:00:18.7]} 37...
Nf3+ {[%clk 0:00:33.7]} 38. Kc3 {[%clk 0:00:19.1]} 38... Qxa4 {[%clk 0:00:29.5]}
39. Qc7 {[%clk 0:00:14.9]} 39... Qa3+ {[%clk 0:00:28.7]} 40. Kc4 {[%clk
0:00:12.8]} 40... Qxb2 {[%clk 0:00:28.3]} 41. Ne6 {[%clk 0:00:12.7]} 41... Ne5+
{[%clk 0:00:26.8]} 42. Rxe5 {[%clk 0:00:12]} 42... Rf7 {[%clk 0:00:21.6]} 43.
Qxb8 {[%clk 0:00:09.5]} 43... b5+ {[%clk 0:00:22.1]} 44. Kc5 {[%clk 0:00:08.3]}
44... Qc3+ {[%clk 0:00:22]} 45. Kb6 {[%clk 0:00:08.3]} 45... Qa3 {[%clk
0:00:20.2]} 46. Kxc6 {[%clk 0:00:05.7]} 46... Qc3+ {[%clk 0:00:18.8]} 47. Kb6
{[%clk 0:00:05.1]} 47... b4 {[%clk 0:00:19.1]} 48. Nc5 {[%clk 0:00:04.3]} 48...
Qc4 {[%clk 0:00:18.9]} 49. Re8 {[%clk 0:00:04.4]} 49... Qd5 {[%clk 0:00:17.2]}
50. Rh8+ {[%clk 0:00:04.4]} 50... Kg6 {[%clk 0:00:17.9]} 51. Qc8 {[%clk
0:00:03.1]} 51... Rf6+ {[%clk 0:00:18.4]} 52. Kb5 {[%clk 0:00:03.2]} 52... b3
{[%clk 0:00:17.6]} 53. Qe8+ {[%clk 0:00:03.8]} 53... Rf7 {[%clk 0:00:17.5]} 54.
Qe6+ {[%clk 0:00:03.8]} 54... Qxe6 {[%clk 0:00:16.8]} 55. Nxe6 {[%clk
0:00:04.7]} 55... Rf6 {[%clk 0:00:17.7]} 56. Nf4+ {[%clk 0:00:04.8]} 56... Kg5
{[%clk 0:00:18.3]} 57. Rb8 {[%clk 0:00:05.2]} 57... Kg4 {[%clk 0:00:18.5]} 58.
Kc5 {[%clk 0:00:05.6]} 58... g5 {[%clk 0:00:19]} 59. Nd5 {[%clk 0:00:05.2]}
59... Ra6 {[%clk 0:00:18]} 60. Rxb3 {[%clk 0:00:05.6]} 60... Kf3 {[%clk
0:00:18.9]} 61. Rb2 {[%clk 0:00:05.5]} 61... h5 {[%clk 0:00:19.3]} 62. Ne7
{[%clk 0:00:05.3]} 62... Rf6 {[%clk 0:00:18.4]} 63. Nd5 {[%clk 0:00:05.3]} 63...
Rf7 {[%clk 0:00:18.2]} 64. Kd4 {[%clk 0:00:05.7]} 64... h4 {[%clk 0:00:18.5]}
65. gxh4 {[%clk 0:00:05.9]} 65... gxh4 {[%clk 0:00:19.4]} 66. Nf4 {[%clk
0:00:06.3]} 66... Re7 {[%clk 0:00:19.2]} 67. Kd5 {[%clk 0:00:06.5]} 67... Rh7
{[%clk 0:00:19]} 68. Ke5 {[%clk 0:00:06.7]} 68... Rf7 {[%clk 0:00:18.1]} 69. Ke6
{[%clk 0:00:05.5]} 69... Rf8 {[%clk 0:00:18.3]} 70. Ke7 {[%clk 0:00:05.7]} 70...
Rh8 {[%clk 0:00:18.2]} 71. Kf6 {[%clk 0:00:06]} 71... h3 {[%clk 0:00:18.6]} 72.
Nxh3 {[%clk 0:00:05.8]} 72... Rxh3 {[%clk 0:00:17.7]} 73. Kxf5 {[%clk
0:00:06.5]} 73... Rh8 {[%clk 0:00:17.1]} 74. Ke5 {[%clk 0:00:06.4]} 74... Re8+
{[%clk 0:00:17.3]} 75. Kf6 {[%clk 0:00:06.4]} 75... Re4 {[%clk 0:00:17]} 76. Kf5
{[%clk 0:00:06.3]} 76... Rh4 {[%clk 0:00:16.7]} 77. Rd2 {[%clk 0:00:06.4]} 77...
Ra4 {[%clk 0:00:15.4]} 78. Rd4 {[%clk 0:00:06.2]} 78... Ra5+ {[%clk 0:00:14.4]}
79. Kf6 {[%clk 0:00:05.5]} 79... Kxf2 {[%clk 0:00:13.2]} 80. e4 {[%clk
0:00:05.7]} 80... Ke3 {[%clk 0:00:13.8]} 81. Rb4 {[%clk 0:00:06]} 81... Ra6+
{[%clk 0:00:11.6]} 82. Kf5 {[%clk 0:00:06.6]} 82... Rh6 {[%clk 0:00:10.7]} 83.
e5 {[%clk 0:00:07]} 83... Rh5+ {[%clk 0:00:11.3]} 84. Kf6 {[%clk 0:00:07.4]}
84... Rh6+ {[%clk 0:00:11.8]} 85. Kf7 {[%clk 0:00:06.9]} 85... Rh7+ {[%clk
0:00:11]} 86. Kg6 {[%clk 0:00:07.5]} 86... Re7 {[%clk 0:00:11.3]} 87. Kf6 {[%clk
0:00:08.1]} 87... Re8 {[%clk 0:00:11.1]} 88. e6 {[%clk 0:00:08.7]} 88... Rf8+
{[%clk 0:00:11.2]} 89. Ke7 {[%clk 0:00:08.9]} 89... Rb8 {[%clk 0:00:11.9]} 90.
Rxb8 {[%clk 0:00:08.5]} 1-0